bitfinex/quotes_ETHUSD_20240811
["timestamp","ask_amount","ask_price","bid_price","bid_amount"]
[1723389035726,2.68174,2610.3,2609.4,2.68256]
[1723389036032,2.68174,2610.3,2609.6,2.68231]
[1723389036325,2.68128,2610.7,2609.9,2.68209]
[1723389036632,2.68082,2611.2,2609.4,2.68252]
[1723389036633,2.68185,2610.2,2609.4,2.68252]
[1723389036797,2.68154,2610.5,2609.5,0.55]
[1723389037121,2.68113,2610.9,2609.6,0.07661751]
[1723389037420,2.68095,2611.1,2610.1,2.68187]
[1723389037619,2.68113,2610.9,2610.0,5.36388]
[1723389037821,2.68113,2610.9,2610.1,3.218188]
[1723389038024,2.68093,2611.1,2610.2,0.07660804]
[1723389038330,2.6805,2611.5,2610.6,2.68131]
[1723389038626,2.68062,2611.4,2610.7,0.34472879]
[1723389038785,0.1281999,2611.6,2610.7,0.268131]
[1723389038987,0.1281999,2611.6,2610.3,2.2994]
[1723389038988,2.68088,2611.1,2610.3,2.2994]
[1723389039235,2.6817,2610.3,2609.9,2.2994]
[1723389039391,2.68117,2610.8,2609.1,2.6829]
[1723389039392,2.6819,2610.1,2609.5,2.2994]
[1723389039585,2.3192,2610.9,2609.5,2.2994]
[1723389039586,2.68158,2610.4,2609.5,2.2994]
[1723389039805,2.68154,2610.5,2609.6,0.22994]
[1723389040008,2.68154,2610.5,2609.7,2.68222]
[1723389040327,2.68055,2611.4,2609.6,0.22994]
[1723389040328,5.68099,2611.0,2609.6,0.22994]
[1723389040484,2.68158,2610.4,2609.5,2.2994]
[1723389040845,2.68149,2610.5,2609.5,2.2994]
[1723389041042,6.798,2611.0,2609.5,2.2994]
[1723389041246,2.68199,2610.0,2609.5,2.2994]
[1723389041637,2.68183,2610.2,2609.5,2.52934]
[1723389041813,3.0,2610.4,2609.7,2.68221]
[1723389042149,3.0,2610.4,2609.5,2.52934]
[1723389042150,2.68159,2610.4,2609.5,5.21177]
[1723389042335,3.0,2610.5,2609.5,2.2994]
[1723389042537,5.36411,2610.0,2609.5,2.2994]
[1723389042853,3.0,2610.9,2609.5,2.2994]
[1723389042854,2.68169,2610.3,2609.6,2.68233]
[1723389043147,5.68111,2610.9,2609.7,2.68227]
[1723389043347,2.68141,2610.6,2609.8,0.291221]
[1723389043521,2.68099,2611.0,2609.6,2.98887061]
[1723389043725,2.68167,2610.4,2609.6,5.59458]
[1723389043923,2.68142,2610.6,2609.6,5.59458]
[1723389043924,2.68148,2610.5,2609.6,2.68237]
[1723389044234,3.0,2610.9,2610.1,2.68184]
[1723389044433,2.68071,2611.3,2610.5,2.68141]
[1723389044652,5.03337,2611.8,2610.6,0.07660142]
[1723389044856,2.68075,2611.3,2610.6,0.07660142]
[1723389045013,5.03338,2611.8,2610.5,0.268141]
[1723389045014,2.3532,2611.8,2610.5,0.268141]
[1723389045214,2.68128,2610.7,2610.2,2.3542]
[1723389045416,2.68128,2610.7,2609.9,2.68202]
[1723389045853,2.68088,2611.1,2610.4,2.68151]
[1723389046159,2.68088,2611.1,2610.5,0.07660792]
[1723389046346,2.68088,2611.1,2610.4,2.949661]
[1723389046515,2.68071,2611.3,2610.5,5.03562]
[1723389046719,2.68134,2610.7,2610.1,2.68188]
[1723389047014,2.68134,2610.7,2610.0,2.3542]
[1723389047015,2.68135,2610.7,2610.0,2.3542]
[1723389047318,2.68113,2610.9,2610.1,0.503618]
[1723389047544,2.68113,2610.9,2610.0,5.03611]
[1723389048049,2.68127,2610.7,2610.0,5.03612]
[1723389048424,2.68113,2610.9,2610.0,5.03612]
[1723389048617,2.68113,2610.9,2610.2,2.68177]
[1723389048931,2.68128,2610.7,2610.0,2.3542]
[1723389049662,2.68156,2610.5,2610.0,2.3542]
[1723389049820,2.68133,2610.7,2610.0,5.03611]
[1723389050018,2.68133,2610.7,2610.1,2.75849558]
[1723389050245,2.68133,2610.7,2610.0,5.54738301]
[1723389050561,2.68133,2610.7,2610.0,2.86547301]
[1723389050733,2.68149,2610.5,2610.0,2.86547301]
[1723389051140,2.68133,2610.7,2610.0,2.86547301]
[1723389051457,3.0,2611.0,2610.4,2.68157]
[1723389051754,3.0,2611.0,2610.1,0.36316297]
[1723389051755,2.68099,2611.0,2610.2,2.68172]
[1723389051930,2.68108,2610.9,2610.3,0.29682673]
[1723389052126,2.68095,2611.1,2610.3,0.29682673]
[1723389052357,2.68067,2611.3,2610.4,0.07660743]
[1723389052558,0.1281999,2611.6,2610.6,2.68131]
[1723389052730,0.1281999,2611.6,2610.8,2.68108]
[1723389052731,2.68051,2611.5,2610.8,2.68108]
[1723389052937,0.1281999,2611.6,2610.7,0.323131]
[1723389053268,2.68082,2611.2,2610.5,2.68142]
[1723389053556,2.68063,2611.4,2610.7,2.68125]
[1723389053759,5.68067,2611.3,2610.7,0.536267]
[1723389053960,2.68067,2611.3,2610.7,0.536267]
[1723389054332,2.68067,2611.3,2610.5,2.68138]
[1723389054535,2.68067,2611.3,2610.6,3.23131]
[1723389054759,3.0,2611.5,2610.6,3.23131]
[1723389055061,2.68056,2611.4,2610.7,0.07659573]
[1723389055365,3.0,2611.4,2610.8,2.6811]
[1723389055520,2.8086099,2611.6,2611.1,2.68083]
[1723389055521,0.1281999,2611.6,2611.1,2.68083]
[1723389055725,0.1281999,2611.6,2611.0,2.75753674]
[1723389055927,0.1281999,2611.6,2610.9,5.20888851]
[1723389055928,2.8086199,2611.6,2610.9,5.20888851]
[1723389056347,2.68055,2611.4,2610.9,2.261]
[1723389056627,2.68061,2611.4,2610.5,2.261]
[1723389056944,2.8085999,2611.6,2610.9,2.68106]
[1723389057152,0.1281999,2611.6,2611.2,2.68071]
[1723389057470,0.1281999,2611.6,2611.0,0.0765892]
[1723389057620,0.1281999,2611.6,2610.6,0.55]
[1723389057825,2.68082,2611.2,2610.5,4.94238]
[1723389058021,2.68082,2611.2,2610.5,5.704779]
[1723389058434,2.68061,2611.4,2610.7,2.68121]
[1723389058646,2.8085999,2611.6,2610.8,2.68116]
[1723389058843,2.8085999,2611.6,2610.6,2.68131]
[1723389058844,2.68057,2611.4,2610.6,2.68131]
[1723389059068,2.68076,2611.2,2610.7,0.55]
[1723389059226,2.68076,2611.2,2610.5,5.704809]
[1723389059628,2.68095,2611.1,2610.5,3.023399]
[1723389059830,2.68051,2611.5,2610.6,0.07660298]
[1723389060057,5.68052,2611.5,2610.8,2.6811]
[1723389060263,2.68052,2611.5,2610.8,0.07659299]
[1723389060550,2.68071,2611.3,2610.7,0.55]
[1723389060736,5.36169,2611.2,2610.5,4.94237]
[1723389061067,2.8085899,2611.6,2610.5,4.94237]
[1723389061068,0.1281999,2611.6,2611.3,2.68063]
[1723389061241,0.1281999,2611.6,2611.4,0.07658064]
[1723389061562,0.1281999,2611.6,2611.2,2.261]
[1723389061766,0.1281999,2611.6,2610.5,2.261]
[1723389061964,2.68056,2611.4,2610.7,0.2811]
[1723389062168,2.68056,2611.4,2610.7,2.96231]
[1723389062470,0.1281999,2611.6,2610.7,2.96231]
[1723389062471,0.1281999,2611.6,2611.0,2.68089]
[1723389062668,0.1281999,2611.6,2611.3,2.68065]
[1723389062876,0.1281999,2611.6,2611.3,2.68058]
[1723389063244,0.1281999,2611.6,2611.4,2.68053]
[1723389063445,0.1281999,2611.6,2611.2,2.261]
[1723389063446,0.1281999,2611.6,2611.2,2.3816]
[1723389063676,0.1281999,2611.6,2611.5,10.97295]
[1723389063879,0.1281999,2611.6,2611.5,10.42295]
[1723389064048,0.1281999,2611.6,2611.5,8.2925]
[1723389064239,0.1281999,2611.6,2611.5,2.9316]
[1723389064435,2.68045,2611.5,2611.1,2.3816]
[1723389064672,0.1281999,2611.6,2610.7,2.3816]
[1723389064673,2.68056,2611.4,2610.7,2.3816]
[1723389064870,2.68083,2611.2,2610.3,5.06326]
[1723389065076,0.1281999,2611.6,2609.7,2.68222]
[1723389065077,2.68117,2610.8,2609.7,2.68222]
[1723389065378,2.68155,2610.5,2609.6,0.0766191]
[1723389065575,2.68113,2610.9,2609.6,0.0766191]
[1723389065750,3.69562754,2611.6,2610.6,2.68133]
[1723389066071,2.68078,2611.2,2610.5,2.68142]
[1723389066295,3.0,2611.5,2610.6,0.07660047]
[1723389066584,2.68079,2611.2,2610.3,2.68162]
[1723389066741,2.68058,2611.4,2610.4,3.23152]
[1723389066942,3.0,2611.3,2610.5,0.07659726]
[1723389067254,0.1281999,2611.6,2610.7,2.3816]
[1723389067255,2.68061,2611.4,2610.7,2.3816]
[1723389067573,5.8085899,2611.6,2610.9,2.68099]
[1723389067574,0.1281999,2611.6,2610.9,2.68099]
[1723389067758,3.0,2611.3,2610.8,2.68109]
[1723389067966,3.0,2611.5,2610.9,3.23106]
[1723389068138,2.8085699,2611.6,2610.9,3.23106]
[1723389068343,3.0,2611.5,2610.9,3.23099]
[1723389068543,2.8085499,2611.6,2610.9,3.23099]
[1723389068751,0.1281999,2611.6,2611.0,2.68094]
[1723389068952,3.0,2611.5,2611.1,2.68079]
[1723389069191,0.1281999,2611.6,2611.2,2.4716]
[1723389069344,0.1281999,2611.6,2611.5,5.3609]
[1723389069544,0.1281999,2611.6,2611.5,0.55]
[1723389069843,0.1281999,2611.6,2611.5,5.43747369]
[1723389070047,0.1281999,2611.6,2611.5,11.13952369]
[1723389070338,0.1281999,2611.6,2611.5,12.52153906]
[1723389070551,0.1281999,2611.6,2611.5,12.44496537]
[1723389070759,0.1281999,2611.6,2611.5,9.76451537]
[1723389070995,0.1281999,2611.6,2611.5,2.68045]
[1723389071491,0.1281999,2611.6,2611.5,5.3609]
[1723389071785,0.1281999,2611.6,2611.5,7.8325]
[1723389071954,0.1261879,2611.6,2611.5,7.8325]
[1723389072145,0.1261879,2611.6,2611.5,2.4716]
[1723389072339,0.1261879,2611.6,2611.5,5.15205]
[1723389072539,0.1261879,2611.6,2611.5,8.615759]
[1723389072740,0.1261879,2611.6,2611.5,14.526659]
[1723389072973,2.3777,2613.6,2611.5,14.526659]
[1723389072974,3.5704493,2613.7,2611.6,2.4716]
[1723389073181,2.67813,2613.8,2613.0,2.67884]
[1723389073389,2.67813,2613.8,2613.0,2.75537072]
[1723389073696,2.67786,2614.1,2613.4,2.67848]
[1723389073843,5.35548,2614.2,2613.4,3.214197]
[1723389074043,5.35548,2614.2,2613.4,3.214147]
[1723389074044,2.67773,2614.2,2613.4,3.214147]
[1723389074286,0.1281999,2614.3,2613.5,2.75484986]
[1723389074444,0.1281999,2614.3,2613.4,0.111917]
[1723389074643,0.1281999,2614.3,2612.1,2.67974]
[1723389074644,2.67863,2613.3,2612.3,2.4716]
[1723389074865,2.67911,2612.9,2612.3,2.4716]
[1723389075051,2.67917,2612.8,2612.3,2.4716]
[1723389075252,2.67851,2613.4,2612.6,2.67923]
[1723389075450,2.67851,2613.4,2612.3,2.4716]
[1723389075451,2.67871,2613.2,2612.5,2.6794]
[1723389075677,3.0,2613.4,2612.3,2.4716]
[1723389075877,0.23777,2613.6,2612.3,2.4716]
[1723389075878,2.67885,2613.1,2612.3,2.4716]
[1723389076065,3.0,2613.3,2612.6,2.67923]
[1723389076403,3.0,2613.4,2612.6,0.267923]
[1723389076677,3.0,2613.4,2612.8,2.67905]
[1723389076885,3.0,2613.4,2612.9,2.679]
[1723389077090,3.0,2613.6,2612.9,2.679]
[1723389077395,3.0,2613.6,2612.9,0.535816]
[1723389077543,6.1757,2614.4,2613.3,2.67852]
[1723389077544,2.67784,2614.1,2613.3,2.67852]
[1723389077744,2.3777,2614.4,2613.3,2.67859]
[1723389078063,2.3777,2614.4,2613.5,2.67831]
[1723389078064,2.67772,2614.2,2613.5,2.67831]
[1723389078275,2.6775,2614.4,2613.7,2.67812]
[1723389078500,2.6773,2614.6,2613.0,3.0216]
[1723389078501,2.67731,2614.6,2613.0,3.0216]
[1723389078687,2.67783,2614.1,2613.3,2.67854]
[1723389078888,2.67768,2614.2,2613.6,2.67828]
[1723389079086,2.67769,2614.2,2613.6,0.07651283]
[1723389079294,0.1281999,2614.3,2613.0,5.70046]
[1723389079295,2.67805,2613.9,2613.2,2.67865]
[1723389079505,0.1281999,2614.3,2613.6,2.67827]
[1723389079506,2.8058299,2614.3,2613.6,2.67827]
[1723389079707,0.1281999,2614.3,2613.7,0.3443398]
[1723389079879,0.1281999,2614.3,2613.0,3.0216]
[1723389079880,2.8058699,2614.3,2613.5,0.0765114]
[1723389080082,0.1281999,2614.3,2613.6,0.55]
[1723389080323,0.1281999,2614.3,2613.9,2.67791]
[1723389080533,0.1281999,2614.3,2613.7,5.3563]
[1723389080684,0.1281999,2614.3,2613.7,2.67812]
[1723389080882,0.1281999,2614.3,2613.7,3.000932]
[1723389081392,0.1281999,2614.3,2614.2,2.67768]
[1723389081580,0.1281999,2614.3,2614.2,3.22768]
[1723389081784,0.1281999,2614.3,2613.9,2.67793]
[1723389081985,0.1281999,2614.3,2614.0,0.55]
[1723389082317,0.1281999,2614.3,2614.1,5.4319878]
[1723389082639,0.1281999,2614.3,2614.2,5.90536]
[1723389082784,0.1281999,2614.3,2614.2,8.37696]
[1723389083288,2.3777,2616.3,2614.3,2.4716]
[1723389083505,2.71516563,2616.3,2614.9,2.6769]
[1723389083834,2.71516563,2616.3,2614.4,0.30216]
[1723389083835,2.3148,2615.6,2614.4,0.30216]
[1723389083982,2.3148,2615.6,2613.7,2.713112]
[1723389083983,2.67707,2614.8,2613.7,2.713112]
[1723389084183,2.67639,2615.5,2613.7,2.713112]
[1723389084420,2.67651,2615.4,2614.4,2.3903]
[1723389084645,3.0,2615.3,2614.7,2.6771]
[1723389084810,3.0,2615.3,2614.9,2.67695]
[1723389085124,2.676,2615.9,2615.2,2.6766]
[1723389085432,2.67576,2616.1,2615.3,0.07645935]
[1723389085587,2.67576,2616.1,2615.4,2.67642]
[1723389085934,2.67585,2616.0,2615.5,0.07645935]
[1723389086220,2.67596,2615.9,2615.2,5.0669]
[1723389086539,3.0,2615.8,2614.8,2.3903]
[1723389086681,2.67605,2615.8,2615.0,2.67685]
[1723389086880,2.67605,2615.8,2615.1,2.75314765]
[1723389086881,2.67609,2615.8,2615.1,2.75314765]
[1723389087121,2.67566,2616.2,2615.4,2.67639]
[1723389087336,2.67566,2616.2,2615.5,2.67629]
[1723389087490,2.3148,2616.3,2615.2,2.3903]
[1723389087691,0.32742418,2616.6,2615.4,2.67644]
[1723389087692,2.67579,2616.1,2615.4,2.67644]
[1723389088026,2.67579,2616.1,2615.2,2.3903]
[1723389088027,2.67586,2616.0,2615.2,2.3903]
[1723389088242,2.67603,2615.9,2615.2,2.3903]
[1723389088411,2.67648,2615.4,2614.8,5.06735]
[1723389088619,2.67678,2615.1,2614.4,2.67742]
[1723389088842,2.3148,2616.2,2614.6,2.3763]
[1723389089075,2.67641,2615.5,2614.8,2.67698]
[1723389089242,2.4086,2616.6,2615.1,2.67668]
[1723389089243,2.67598,2615.9,2615.1,2.67668]
[1723389089527,2.67598,2615.9,2615.3,2.67654]
[1723389089747,3.0,2615.8,2615.2,0.07646293]
[1723389090345,3.0,2616.0,2615.1,2.67666]
[1723389090511,2.67641,2615.5,2614.9,2.3763]
[1723389091272,2.67641,2615.5,2613.9,2.67795]
[1723389091273,2.67697,2614.9,2614.1,2.67772]
[1723389091558,3.0,2615.4,2614.0,2.3763]
[1723389091559,3.267641,2615.4,2614.0,2.3763]
[1723389091736,2.67712,2614.8,2614.1,2.67778]
[1723389091961,2.67712,2614.8,2613.6,2.67825]
[1723389091962,2.67751,2614.4,2613.6,2.3763]
[1723389092264,0.267712,2614.8,2613.2,2.3763]
[1723389092265,2.678,2613.9,2613.2,2.3763]
[1723389092582,2.678,2613.9,2612.8,2.67906]
[1723389092583,2.4086,2614.2,2612.8,2.3763]
[1723389092886,0.1,2614.5,2611.9,2.67996]
[1723389092887,2.67929,2612.7,2611.9,2.67996]
[1723389093030,2.4086,2613.7,2611.3,2.68065]
[1723389093232,3.0,2613.1,2611.8,2.68006]
[1723389093486,2.67939,2612.6,2611.8,2.68013]
[1723389093633,2.67939,2612.6,2611.5,2.3763]
[1723389093634,2.67939,2612.6,2611.7,2.68016]
[1723389093979,2.67939,2612.6,2611.5,2.3763]
[1723389093980,2.67975,2612.2,2611.5,2.3763]
[1723389094335,2.67975,2612.2,2611.5,5.05675]
[1723389094664,2.4086,2613.2,2611.5,2.3763]
[1723389094886,5.08696,2613.6,2612.2,2.67963]
[1723389095072,2.67847,2613.5,2612.8,2.67911]
[1723389095377,2.67868,2613.3,2612.5,2.67934]
[1723389095553,2.67821,2613.7,2612.9,2.67894]
[1723389095758,5.3565,2613.7,2612.9,2.67894]
[1723389095927,2.67821,2613.7,2612.9,2.67894]
[1723389096136,2.67803,2613.9,2613.0,0.07653877]
[1723389096363,2.67803,2613.9,2613.1,2.67878]
[1723389096572,2.67782,2614.1,2613.3,2.6785]
[1723389096932,6.47537,2614.6,2613.3,0.07652504]
[1723389096933,2.67768,2614.2,2613.3,0.07652504]
[1723389097330,2.67776,2614.2,2613.5,2.67839]
[1723389097541,6.47534,2614.6,2613.3,0.2452825]
[1723389097830,6.47534,2614.6,2612.7,2.3763]
[1723389097831,2.67857,2613.4,2612.7,2.3763]
[1723389098042,2.4086,2614.1,2612.8,2.67911]
[1723389098043,2.67836,2613.6,2612.8,2.67911]
[1723389098200,2.67869,2613.3,2612.5,2.67935]
[1723389098406,2.67869,2613.3,2612.5,3.452873]
[1723389098583,3.0,2613.6,2612.5,0.773523]
[1723389098789,2.67882,2613.1,2611.8,2.3763]
[1723389099096,3.798,2613.6,2611.8,2.3763]
[1723389099097,3.0,2613.5,2611.9,2.67995]
[1723389099284,3.0,2613.5,2611.8,2.3763]
[1723389099285,2.67899,2613.0,2612.0,0.0765586]
[1723389099488,3.0,2612.9,2612.0,2.67992]
[1723389099731,2.67887,2613.1,2612.3,2.6796]
[1723389099902,5.67891,2613.0,2612.3,2.6796]
[1723389100229,5.67891,2613.0,2612.4,2.67946]
[1723389100230,3.0,2613.0,2612.4,2.67946]
[1723389100543,3.0,2613.0,2612.3,0.07655766]
[1723389100835,2.67818,2613.8,2613.0,2.67887]
[1723389101066,5.35589,2614.0,2613.1,0.07653206]
[1723389101360,2.67769,2614.2,2613.4,2.67849]
[1723389101515,2.67751,2614.4,2613.6,2.67828]
[1723389101854,2.67751,2614.4,2613.5,2.75482147]
[1723389102156,2.67738,2614.5,2613.8,2.67803]
[1723389102357,2.67719,2614.7,2613.4,2.3763]
[1723389102667,2.67793,2614.0,2613.4,2.3763]
[1723389102961,2.4086,2614.8,2613.5,0.07652647]
[1723389102962,2.67756,2614.4,2613.5,0.07652647]
[1723389103172,2.67749,2614.4,2613.5,2.67836]
[1723389103331,2.4086,2614.8,2613.7,2.67813]
[1723389103332,2.67737,2614.6,2613.7,2.67813]
[1723389103534,2.6775,2614.4,2613.6,0.267836]
[1723389103837,2.67783,2614.1,2613.0,2.3763]
[1723389104036,2.67766,2614.3,2613.5,2.67839]
[1723389104210,2.67766,2614.3,2613.0,5.05516]
[1723389104211,2.4086,2614.8,2613.7,2.67813]
[1723389104408,2.67754,2614.4,2613.7,2.67813]
[1723389104611,3.0,2614.3,2613.7,0.535652]
[1723389104811,2.67799,2613.9,2613.2,2.432]
[1723389105051,2.67721,2614.7,2613.2,2.432]
[1723389105266,3.0,2613.8,2613.2,2.432]
[1723389105414,3.0,2613.9,2613.3,2.6786]
[1723389105773,3.0,2613.9,2612.7,2.432]
[1723389105909,2.4025,2614.1,2612.7,2.432]
[1723389105910,2.67867,2613.3,2612.7,2.432]
[1723389106114,2.67841,2613.5,2612.7,5.890205]
[1723389106308,3.0,2613.4,2612.7,5.11114]
[1723389106558,3.0,2613.4,2612.7,2.432]
[1723389106712,2.67876,2613.2,2612.7,2.432]
[1723389107152,2.67854,2613.4,2612.7,2.432]
[1723389107310,2.6787,2613.2,2612.7,2.432]
[1723389107716,3.0,2613.7,2612.7,2.6752]
[1723389107945,2.67839,2613.6,2612.8,2.67902]
[1723389108115,5.4025,2614.1,2612.7,2.6752]
[1723389108116,3.0,2613.5,2613.0,2.67885]
[1723389108435,2.4025,2614.1,2612.7,2.6752]
[1723389108436,2.67868,2613.3,2612.7,2.6752]
[1723389108654,2.67868,2613.3,2612.7,2.432]
[1723389108964,3.0,2613.8,2612.7,2.432]
[1723389109264,2.67795,2614.0,2612.4,2.67946]
[1723389109265,2.67876,2613.2,2612.4,2.67946]
[1723389109560,5.4025,2614.1,2612.3,2.3102]
[1723389109561,2.67854,2613.4,2612.6,2.67932]
[1723389109775,2.67871,2613.2,2612.7,0.267932]
[1723389109936,2.67847,2613.5,2612.3,2.3102]
[1723389110127,2.67847,2613.5,2612.6,2.6793]
[1723389110128,3.0,2613.4,2612.6,2.6793]
[1723389110329,2.67871,2613.2,2612.6,2.94723]
[1723389110529,2.67863,2613.3,2612.7,2.6792]
[1723389110730,2.67863,2613.3,2612.6,2.94715]
[1723389110731,3.0,2613.1,2612.6,0.26793]
[1723389111045,5.67886,2613.1,2612.4,5.35893]
[1723389111257,2.67886,2613.1,2612.4,5.35891]
[1723389111431,5.67873,2613.2,2612.4,2.67945]
[1723389111764,5.67873,2613.2,2611.7,2.3102]
[1723389111765,2.67954,2612.4,2611.7,2.3102]
[1723389112077,2.67954,2612.4,2610.6,2.6813]
[1723389112078,2.67954,2612.4,2611.4,4.99071]
[1723389112366,3.0,2612.3,2611.8,2.68006]
[1723389112665,3.0,2612.6,2612.0,2.67984]
[1723389112877,3.798,2613.7,2612.3,2.6796]
[1723389112878,2.67888,2613.1,2612.3,2.6796]
[1723389113055,2.67864,2613.3,2612.3,0.58318809]
[1723389113361,3.0,2613.0,2612.6,2.67931]
[1723389113548,3.0,2613.2,2612.6,2.67931]
[1723389113751,2.6789,2613.1,2612.4,2.7559683]
[1723389113953,3.0,2613.0,2612.5,3.00564781]
[1723389114130,3.0,2613.0,2612.5,2.67938]
[1723389114327,3.0,2613.0,2612.5,2.67936]
[1723389114557,3.0,2613.0,2612.7,2.67914]
[1723389114739,2.67845,2613.5,2612.8,0.27556883]
[1723389115063,5.07972,2614.0,2612.7,2.67914]
[1723389115064,2.67812,2613.8,2612.7,2.67914]
[1723389115239,2.4018,2614.0,2612.5,0.07654591]
[1723389115575,2.67859,2613.4,2612.6,0.55]
[1723389115729,5.35712,2613.4,2612.7,2.67913]
[1723389115934,2.6786,2613.3,2612.8,0.322913]
[1723389116158,2.6784,2613.5,2612.8,0.322913]
[1723389116362,2.67838,2613.6,2612.9,2.67895]
[1723389116613,2.67843,2613.5,2612.9,3.4780733]
[1723389116761,5.0797,2614.0,2612.9,3.4780733]
[1723389116762,2.67861,2613.3,2612.9,0.7991233]
[1723389117097,2.67862,2613.3,2612.7,2.6792]
[1723389117403,2.67862,2613.3,2612.5,2.67935]
[1723389117557,5.67838,2613.6,2612.9,2.67895]
[1723389117759,2.67843,2613.5,2612.9,2.67895]
[1723389117983,3.0,2613.4,2612.9,2.67895]
[1723389118406,3.0,2613.4,2612.8,2.67911]
[1723389118700,5.35732,2613.3,2612.7,2.67919]
[1723389118903,2.67865,2613.3,2612.7,0.55896]
[1723389119398,2.67865,2613.3,2612.7,3.23816]
[1723389119559,5.67859,2613.4,2612.8,2.67906]
[1723389119793,2.67861,2613.3,2612.7,0.55896]
[1723389119993,2.67877,2613.2,2612.5,2.91037]
[1723389120207,2.4018,2613.3,2612.1,2.67977]
[1723389120408,3.0,2613.4,2612.2,0.07655761]
[1723389120559,3.0,2613.6,2613.1,2.67875]
[1723389120760,3.0,2613.6,2612.9,2.679]
[1723389120984,3.3798,2614.1,2612.9,2.679]
[1723389121181,2.67825,2613.7,2613.0,2.67885]
[1723389121501,2.67825,2613.7,2613.0,0.535785]
[1723389121703,2.67803,2613.9,2613.0,0.535785]
[1723389121704,3.0,2613.6,2613.1,5.35748]
[1723389121864,2.67867,2613.3,2612.5,2.3102]
[1723389122198,2.67931,2612.7,2612.1,2.3102]
[1723389122402,2.67928,2612.7,2612.1,2.3102]
[1723389122564,3.56906945,2613.6,2611.8,0.268006]
[1723389122565,2.67901,2612.9,2611.8,0.268006]
[1723389122764,2.67865,2613.3,2612.6,2.67931]
[1723389122994,3.0,2613.6,2612.5,2.3102]
[1723389123200,2.67882,2613.1,2612.5,2.3102]
[1723389123362,2.67882,2613.1,2612.3,2.67953]
[1723389123363,5.67896,2613.0,2612.3,2.67953]
[1723389123565,3.0,2613.0,2612.1,2.3102]
[1723389123863,2.67911,2612.9,2612.2,2.67967]
[1723389124073,2.67928,2612.7,2612.0,2.67988]
[1723389124279,2.67932,2612.6,2611.9,0.07655944]
[1723389124465,6.56886254,2613.5,2611.7,2.3512]
[1723389124466,2.67979,2612.2,2611.7,2.3512]
[1723389125073,2.67979,2612.2,2611.0,2.68093]
[1723389125074,2.67979,2612.2,2611.3,2.68059]
[1723389125408,3.0,2612.6,2611.1,5.032]
[1723389125409,2.68006,2611.9,2611.1,5.032]
[1723389125608,2.68,2612.0,2611.1,5.032]
[1723389125819,3.0,2612.1,2611.1,2.3512]
[1723389125964,3.0,2612.1,2611.7,2.68017]
[1723389126318,3.0,2612.3,2612.1,2.67983]
[1723389126468,2.67913,2612.8,2612.1,2.67983]
[1723389126816,3.0,2612.7,2612.2,2.67969]
[1723389126962,3.0,2612.7,2612.1,2.67977]
[1723389126963,2.67937,2612.6,2612.1,0.503103]
[1723389127165,3.0,2612.5,2612.0,2.3512]
[1723389127823,3.0,2612.5,2612.1,0.07656341]
[1723389128111,2.67896,2613.0,2612.2,2.67972]
[1723389128267,2.67903,2612.9,2612.2,2.67967]
[1723389128471,2.67938,2612.6,2612.2,0.51074334]
[1723389128686,2.67936,2612.6,2611.8,2.68013]
[1723389128920,2.67909,2612.9,2612.0,2.67987]
[1723389129222,2.67954,2612.4,2611.7,2.68018]
[1723389129422,2.67954,2612.4,2611.8,2.68012]
[1723389130096,5.67936,2612.6,2611.8,2.68012]
[1723389130305,5.67938,2612.6,2611.7,3.458847]
[1723389130497,2.67958,2612.4,2611.7,3.458847]
[1723389130799,3.0,2612.6,2611.8,3.345164]
[1723389130999,2.67932,2612.6,2612.0,2.67986]
[1723389131226,3.0,2612.5,2612.0,2.75642372]
[1723389131526,6.47673,2613.2,2612.3,2.67957]
[1723389131527,2.67897,2613.0,2612.3,2.67957]
[1723389131737,2.67897,2613.0,2612.4,0.267957]
[1723389132030,5.35797,2613.0,2612.4,0.267957]
[1723389132330,2.67898,2613.0,2612.2,2.67967]
[1723389132519,5.35793,2613.0,2612.2,2.67967]
[1723389132722,5.35793,2613.0,2612.3,2.50245716]
[1723389132723,2.67897,2613.0,2612.3,2.50245716]
[1723389132910,7.36602015,2613.7,2611.9,2.4259]
[1723389133111,2.67953,2612.4,2611.9,2.4259]
[1723389133311,2.67964,2612.3,2611.9,2.4259]
[1723389133522,2.67953,2612.4,2611.9,2.4259]
[1723389134508,5.67939,2612.6,2611.9,2.4259]
[1723389134509,2.67963,2612.3,2611.9,2.4259]
[1723389135828,2.67963,2612.3,2611.9,2.93651]
[1723389136026,3.0,2612.6,2612.0,2.67988]
[1723389136193,3.0,2612.6,2612.0,2.7564398]
[1723389136394,5.67933,2612.6,2612.0,5.4363198]
[1723389136596,2.67923,2612.7,2612.0,2.7564398]
[1723389136825,2.67923,2612.7,2612.1,0.51823398]
[1723389137033,5.35851,2612.7,2612.1,0.51823398]
[1723389137360,3.56822019,2613.4,2612.1,0.51823398]
[1723389137361,2.2875,2613.8,2612.2,2.9759]
[1723389137491,2.67928,2612.7,2612.2,2.9759]
[1723389137693,2.67889,2613.1,2612.2,2.4259]
[1723389137947,2.67888,2613.1,2612.4,2.67947]
[1723389138124,2.67884,2613.1,2612.2,2.4259]
[1723389138290,2.67842,2613.5,2611.8,5.10598]
[1723389138291,2.67943,2612.5,2611.8,5.10598]
[1723389138494,4.96609,2613.4,2611.8,5.10598]
[1723389138495,5.85644098,2613.4,2611.9,0.07656663]
[1723389138707,5.85644098,2613.4,2611.8,2.4259]